bitfinex/quotes_BTCUSD_20220405
["timestamp","ask_amount","ask_price","bid_price","bid_amount"]
[1649126945134,0.2,46622.0,46619.0,0.103619]
[1649126945234,0.2,46622.0,46620.0,0.322322]
[1649126945431,0.2,46622.0,46619.0,0.103619]
[1649126945432,0.2,46622.0,46621.0,0.322322]
[1649126945532,0.2,46622.0,46619.0,0.103619]
[1649126945631,0.2,46622.0,46620.0,0.322322]
[1649126945838,0.2,46622.0,46621.0,0.322322]
[1649126945936,0.2,46622.0,46620.0,0.322322]
[1649126946790,0.2,46622.0,46619.0,0.103619]
[1649126946888,0.2,46622.0,46620.0,0.322322]
[1649126946991,0.2,46622.0,46619.0,0.103619]
[1649126947088,0.2,46622.0,46620.0,0.322322]
[1649126947189,0.2,46622.0,46619.0,0.103619]
[1649126947288,0.2,46622.0,46620.0,0.322322]
[1649126947391,0.2,46622.0,46619.0,0.103619]
[1649126947642,0.2,46622.0,46620.0,0.322322]
[1649126947840,0.2,46622.0,46619.0,0.103619]
[1649126948144,0.2,46622.0,46620.0,0.322322]
[1649126950722,0.2,46622.0,46620.0,0.429567]
[1649126950823,0.2,46622.0,46621.0,0.05]
[1649126950925,0.2,46622.0,46621.0,0.372322]
[1649126951432,0.2,46622.0,46621.0,0.05]
[1649126951524,0.2,46622.0,46621.0,0.372322]
[1649126952026,0.2,46622.0,46621.0,0.05]
[1649126952175,0.2,46622.0,46621.0,0.522322]
[1649126952275,0.2,46622.0,46621.0,0.2]
[1649126952379,0.2,46622.0,46621.0,0.522322]
[1649126952577,0.2,46622.0,46621.0,0.2]
[1649126954699,0.2,46622.0,46621.0,0.522322]
[1649126958191,0.2,46622.0,46621.0,0.572322]
[1649126960094,0.2,46622.0,46621.0,0.25]
[1649126960759,0.2,46622.0,46621.0,0.1]
[1649126961708,0.2,46622.0,46621.0,0.05]
[1649126961809,0.2,46622.0,46620.0,0.05]
[1649126962109,0.2,46622.0,46619.0,0.21086842]
[1649126962758,0.51970651,46622.0,46619.0,0.2107582]
[1649126963259,1.25658161,46622.0,46619.0,0.2107582]
[1649126963361,1.25658161,46622.0,46619.0,0.103619]
[1649126971347,1.25658161,46622.0,46619.0,0.05]
[1649126971449,1.25658161,46622.0,46618.0,0.103631]
[1649126971547,1.25658161,46622.0,46618.0,0.053631]
[1649126972745,1.25712032,46622.0,46618.0,0.053631]
[1649126973795,1.25658161,46622.0,46618.0,0.053631]
[1649126974049,1.25712032,46622.0,46618.0,0.053631]
[1649126974401,1.25712032,46622.0,46619.0,0.053629]
[1649126974999,1.25658161,46622.0,46619.0,0.053629]
[1649126976949,1.25658161,46622.0,46618.0,0.103631]
[1649126977143,1.25658161,46622.0,46618.0,0.053631]
[1649126977242,0.3,46621.0,46618.0,0.053631]
[1649126977443,1.25658161,46622.0,46618.0,0.053631]
[1649126977546,1.25712032,46622.0,46618.0,0.053631]
[1649126978147,0.3,46621.0,46618.0,0.053631]
[1649126978250,0.3,46621.0,46617.0,0.05]
[1649126978350,0.3,46621.0,46616.0,0.2]
[1649126978649,0.3,46621.0,46616.0,0.05]
[1649126978851,0.30053872,46621.0,46613.0,0.322322]
[1649126978954,0.30053872,46621.0,46612.0,0.05]
[1649126979050,0.30053872,46621.0,46613.0,0.322322]
[1649126979151,0.30053872,46621.0,46612.0,0.05]
[1649126979252,0.24916222,46618.0,46613.0,0.322322]
[1649126979352,0.24916222,46618.0,46613.0,0.372322]
[1649126979490,0.24916222,46618.0,46613.0,0.422322]
[1649126979888,0.31072,46621.0,46613.0,0.422322]
[1649126979992,0.31072,46621.0,46613.0,0.1]
[1649126980090,0.00053871,46620.0,46613.0,0.1]
[1649126980189,0.00053871,46620.0,46612.0,0.05]
[1649126980291,0.00053871,46620.0,46613.0,0.322322]
[1649126980392,0.00053871,46620.0,46613.0,0.05]
[1649126980490,0.00053871,46620.0,46613.0,0.1]
[1649126980590,0.00053871,46620.0,46613.0,0.05]
[1649126980994,0.30580767,46617.0,46614.0,0.372322]
[1649126981144,0.3,46621.0,46614.0,0.372322]
[1649126981243,0.01126872,46620.0,46614.0,0.1]
[1649126981347,0.00053872,46620.0,46614.0,0.05]
[1649126981896,0.00053872,46620.0,46613.0,0.322322]
[1649126981999,0.00053872,46620.0,46613.0,0.372322]
[1649126982096,0.00053872,46620.0,46613.0,0.1]
[1649126982199,0.3,46621.0,46613.0,0.1]
[1649126982401,0.00053872,46620.0,46614.0,0.053634]
[1649126983096,0.30570452,46619.0,46614.0,0.053634]
[1649126983613,0.30570452,46619.0,46615.0,0.422322]
[1649126983713,0.30570452,46619.0,46615.0,0.1]
[1649126985115,0.30570452,46619.0,46616.0,0.322322]
[1649126985215,0.30570452,46619.0,46615.0,0.1]
[1649126985767,0.00053828,46620.0,46615.0,0.1]
[1649126985919,0.3,46621.0,46615.0,0.1]
[1649126986017,0.00053828,46620.0,46615.0,0.1]
[1649126986319,0.00053828,46620.0,46615.0,0.09989159]
[1649126986869,0.27166255,46619.0,46615.0,0.09989159]
[1649126990509,0.00053833,46620.0,46615.0,0.09989159]
[1649126990609,0.3,46621.0,46615.0,0.09989159]
[1649126990852,0.00053833,46620.0,46615.0,0.09989159]
[1649126991554,0.29113117,46619.0,46615.0,0.09989159]
[1649126991757,0.3,46621.0,46615.0,0.09989159]
[1649126992058,0.00053832,46620.0,46615.0,0.09989159]
[1649126992404,0.00053832,46620.0,46615.0,0.15352559]
[1649126992808,0.00053832,46620.0,46616.0,0.322322]
[1649126992906,0.00053832,46620.0,46615.0,0.15352559]
[1649126993007,1.26730161,46622.0,46615.0,0.15352559]
[1649126993408,0.00053832,46620.0,46615.0,0.15352559]
[1649126993816,0.00053832,46620.0,46617.0,0.322322]
[1649126993911,0.00053832,46620.0,46616.0,0.322322]
[1649126994212,0.9368751,46622.0,46616.0,0.322322]
[1649126994411,0.00053832,46620.0,46617.0,0.21450369]
[1649126994526,0.00053832,46620.0,46618.0,0.322322]
[1649126995432,0.9368751,46622.0,46617.0,0.26450369]
[1649126995628,0.00053831,46621.0,46617.0,0.26450369]
[1649126996028,0.00053831,46621.0,46618.0,0.322322]
[1649126996130,0.00053831,46621.0,46618.0,0.372322]
[1649126996229,0.00053831,46621.0,46618.0,0.42594776]
[1649126996330,0.00053831,46621.0,46620.0,0.322322]
[1649126996429,0.02409549,46621.0,46620.0,0.322322]
[1649126996582,0.02355718,46621.0,46620.0,0.322322]
[1649126998846,0.02355718,46621.0,46619.0,0.157248]
[1649126998947,0.02355819,46620.0,46619.0,0.157248]
[1649126999047,0.02355819,46620.0,46619.0,0.47957]
[1649126999348,0.9368751,46622.0,46620.0,0.322322]
[1649126999448,0.0063723,46621.0,46620.0,0.322322]
[1649127000099,0.0063723,46621.0,46619.0,0.157248]
[1649127000199,0.9368751,46622.0,46620.0,0.322322]
[1649127000299,0.0063723,46621.0,46619.0,0.157248]
[1649127000399,0.9368751,46622.0,46620.0,0.322322]
[1649127000499,0.0063723,46621.0,46619.0,0.157248]
[1649127000598,0.0063723,46621.0,46620.0,0.322322]
[1649127000701,0.01113543,46621.0,46620.0,0.322322]
[1649127001149,0.01113543,46621.0,46620.0,0.00156304]
[1649127001251,0.31113543,46621.0,46620.0,0.00156304]
[1649127001749,0.01113543,46621.0,46620.0,0.00156304]
[1649127001849,0.31113543,46621.0,46620.0,0.00156304]
[1649127002349,0.01113543,46621.0,46620.0,0.00156304]
[1649127003205,0.01113543,46621.0,46619.0,0.15881104]
[1649127003301,0.9368751,46622.0,46619.0,0.15881104]
[1649127003401,0.01113591,46620.0,46619.0,0.15881104]
[1649127003503,0.01113591,46620.0,46619.0,0.48113304]
[1649127007152,0.01113591,46620.0,46619.0,0.15881104]
[1649127007254,0.01113591,46620.0,46619.0,0.10518704]
[1649127007405,0.01113591,46620.0,46619.0,0.05156304]
[1649127007602,0.01113591,46620.0,46619.0,0.00156304]
[1649127008856,0.2672971,46620.0,46619.0,0.00156304]
[1649127009207,0.2672971,46620.0,46617.0,0.15881681]
[1649127009305,0.3,46619.0,46617.0,0.15881681]
[1649127010803,0.3,46619.0,46617.0,0.15871333]
[1649127014345,0.3,46619.0,46617.0,0.05156512]
[1649127014445,0.3,46619.0,46617.0,0.10156512]
[1649127014945,0.25669907,46620.0,46617.0,0.10156512]
[1649127015848,0.25616119,46620.0,46617.0,0.10156512]
[1649127017956,0.25616119,46620.0,46619.0,0.00156512]
[1649127018055,0.27815454,46620.0,46619.0,0.00156512]
[1649127019306,0.25616119,46620.0,46619.0,0.00156512]
[1649127019507,0.26729733,46620.0,46619.0,0.00156512]
[1649127020010,0.26729733,46620.0,46617.0,0.15519912]
[1649127020111,0.25616119,46620.0,46617.0,0.15519912]
[1649127021951,0.25616119,46620.0,46619.0,0.00156512]
[1649127022050,0.26729733,46620.0,46619.0,0.00156512]
[1649127023754,0.26729733,46620.0,46617.0,0.10519912]
[1649127023857,0.25616119,46620.0,46617.0,0.10519912]
[1649127024355,0.9368751,46622.0,46618.0,0.05363145]
[1649127024498,0.00053792,46621.0,46618.0,0.05363145]
[1649127025397,1.19554036,46622.0,46618.0,0.05363145]
[1649127025695,1.19607827,46622.0,46618.0,0.05363145]
[1649127026601,1.19554036,46622.0,46618.0,0.05363145]
[1649127026800,1.19607827,46622.0,46618.0,0.05363145]
[1649127027350,0.93741301,46622.0,46618.0,0.05363145]
[1649127027851,0.9368751,46622.0,46618.0,0.05363145]
[1649127028054,0.93741301,46622.0,46618.0,0.05363145]
[1649127028970,0.9368751,46622.0,46618.0,0.05363145]
[1649127029271,0.93741301,46622.0,46618.0,0.05363145]
[1649127030174,0.9368751,46622.0,46618.0,0.05363145]
[1649127030477,0.93741301,46622.0,46618.0,0.05363145]
[1649127031426,0.9368751,46622.0,46618.0,0.05363145]
[1649127031627,0.93741301,46622.0,46618.0,0.05363145]
[1649127032603,0.9368751,46622.0,46618.0,0.05363145]
[1649127032857,0.93741301,46622.0,46618.0,0.05363145]
[1649127033257,0.93741301,46622.0,46617.0,0.21088751]
[1649127033757,0.9368751,46622.0,46617.0,0.21088751]
[1649127034007,0.9368751,46622.0,46617.0,0.21079989]
[1649127034111,0.93741301,46622.0,46617.0,0.21079989]
[1649127035014,0.9368751,46622.0,46617.0,0.21079989]
[1649127035218,0.93741301,46622.0,46617.0,0.21079989]
[1649127036198,0.9368751,46622.0,46617.0,0.21079989]
[1649127036399,0.93741301,46622.0,46617.0,0.21079989]
[1649127037402,0.9368751,46622.0,46617.0,0.21079989]
[1649127037701,0.9368751,46622.0,46618.0,0.375946]
[1649127037702,0.93741301,46622.0,46618.0,0.375946]
[1649127037801,0.93741301,46622.0,46618.0,0.053624]
[1649127038653,0.9368751,46622.0,46618.0,0.053624]
[1649127038855,0.937413,46622.0,46618.0,0.053624]
[1649127039822,0.9368751,46622.0,46618.0,0.053624]
[1649127039918,0.9368751,46622.0,46618.0,0.048624]
[1649127040019,0.937413,46622.0,46618.0,0.048624]
[1649127040620,0.937413,46622.0,46618.0,0.10225052]
[1649127041022,0.9368751,46622.0,46618.0,0.10225052]
[1649127041123,0.9368751,46622.0,46618.0,0.15225052]
[1649127041325,0.937413,46622.0,46618.0,0.15225052]
[1649127042171,0.9368751,46622.0,46618.0,0.15225052]
[1649127042471,0.937413,46622.0,46618.0,0.15225052]
[1649127042874,0.937061,46622.0,46618.0,0.15225052]
[1649127043405,0.9365231,46622.0,46618.0,0.15225052]
[1649127043601,0.937061,46622.0,46618.0,0.15225052]
[1649127043801,0.30051024,46621.0,46618.0,0.15225052]
[1649127044654,0.30043154,46621.0,46618.0,0.15225052]
[1649127045306,0.30043154,46621.0,46618.0,0.10225052]
[1649127045909,0.30043154,46621.0,46620.0,0.00251405]
[1649127046056,0.32242465,46621.0,46620.0,0.00251405]
[1649127046256,0.01113602,46621.0,46620.0,0.00251405]
[1649127046358,0.01113602,46621.0,46620.0,0.05614305]
[1649127053583,0.9365231,46622.0,46620.0,0.05614305]
[1649127068990,0.9365231,46622.0,46620.0,0.00251405]
[1649127069289,0.9365231,46622.0,46620.0,0.00125951]
[1649127071325,0.9365231,46622.0,46619.0,0.00254146]
[1649127073581,0.9365231,46622.0,46621.0,0.00125789]
[1649127075387,0.9365231,46622.0,46618.0,0.05113424]
[1649127075596,0.01085907,46619.0,46618.0,0.00251024]
[1649127075693,0.03300607,46619.0,46618.0,0.00251024]
[1649127076692,0.07580607,46619.0,46618.0,0.00251024]
[1649127077827,0.22596668,46619.0,46618.0,0.00251024]
[1649127078027,0.22596668,46619.0,46618.0,0.00125789]
[1649127078980,0.61091036,46619.0,46618.0,0.00125789]
[1649127079181,0.71091036,46619.0,46618.0,0.00125789]
[1649127079478,0.92127053,46619.0,46618.0,0.00125789]
[1649127079780,0.97491853,46619.0,46617.0,0.00252044]
[1649127079883,0.16409578,46618.0,46617.0,0.00252044]
[1649127079983,0.48641778,46618.0,46617.0,0.00252044]
[1649127080081,0.62761082,46618.0,46617.0,0.00252044]
[1649127080181,0.77041082,46618.0,46617.0,0.00252044]
[1649127081429,0.77041082,46618.0,46617.0,0.00125768]
[1649127083386,0.77041082,46618.0,46617.0,0.00126438]
[1649127083586,0.78114082,46618.0,46617.0,0.00126438]
[1649127084288,0.8174888,46618.0,46617.0,0.00126438]
[1649127084388,1.12380493,46618.0,46617.0,0.00126438]
[1649127085432,1.12380493,46618.0,46606.0,0.0025234]
[1649127085530,0.022147,46617.0,46606.0,0.0561694]
[1649127085629,0.022147,46617.0,46606.0,0.3040553]
[1649127085630,0.2390867,46608.0,46606.0,0.3040553]
[1649127085731,0.365122,46616.0,46606.0,0.3040553]
[1649127085834,0.0428,46615.0,46606.0,0.3040553]
[1649127085933,0.0428,46615.0,46606.0,0.3540553]
[1649127086632,0.0428,46615.0,46608.0,0.05364]
[1649127086736,0.01073,46614.0,46610.0,0.053639]
[1649127086832,0.3017214,46614.0,46610.0,0.053639]
[1649127086932,0.064288,46613.0,46610.0,0.053639]
[1649127087031,0.0428,46613.0,46610.0,0.053639]
[1649127088874,0.322243,46612.0,46610.0,0.053639]
[1649127089124,0.27880198,46611.0,46610.0,0.053639]
[1649127089375,0.0428,46613.0,46608.0,0.00127799]
[1649127089477,0.28399304,46613.0,46608.0,0.00127799]
[1649127089573,0.18399304,46613.0,46608.0,0.00127799]
[1649127089927,0.0428,46613.0,46608.0,0.00127799]
[1649127090226,0.04081035,46613.0,46608.0,0.00127799]
[1649127091330,0.04081035,46613.0,46610.0,0.00127573]
[1649127092042,0.322243,46612.0,46610.0,0.00127573]
[1649127092143,0.04081035,46613.0,46610.0,0.00127573]
[1649127092242,0.322243,46611.0,46610.0,0.00127573]
[1649127092344,0.322243,46612.0,46610.0,0.00127573]
[1649127092443,0.18200339,46613.0,46610.0,0.00127573]
[1649127092546,0.322243,46612.0,46610.0,0.00127573]
[1649127093347,0.322243,46612.0,46611.0,0.00127265]
[1649127093898,0.532243,46612.0,46611.0,0.00127265]
[1649127095352,0.532243,46612.0,46611.0,0.00254675]
[1649127095927,0.36008364,46612.0,46611.0,0.00254675]
[1649127096076,0.532243,46612.0,46611.0,0.00254675]
[1649127096982,0.68238007,46612.0,46611.0,0.00254675]
[1649127097382,0.68238007,46612.0,46611.0,0.0012741]
[1649127099339,0.68238007,46612.0,46610.0,0.00254675]
[1649127099442,0.021488,46611.0,46610.0,0.00254675]
[1649127099675,0.17165695,46611.0,46610.0,0.00254675]
[1649127101334,0.17165695,46611.0,46610.0,0.0012741]
[1649127103549,0.17165695,46611.0,46609.0,0.00254912]
[1649127107693,0.021488,46611.0,46609.0,0.00254912]
[1649127111286,0.322243,46610.0,46609.0,0.00254912]
[1649127111421,0.21,46612.0,46609.0,0.00254912]
[1649127112587,0.21,46612.0,46609.0,0.00243447]
[1649127113637,0.532243,46612.0,46611.0,0.0012741]
[1649127113739,0.231488,46612.0,46611.0,0.0012741]
[1649127114832,0.20976917,46612.0,46611.0,0.0012741]
[1649127115233,0.53201217,46612.0,46611.0,0.0012741]
[1649127115336,0.20976917,46612.0,46611.0,0.0012741]
[1649127115636,0.20976917,46612.0,46611.0,0.00269867]
[1649127117590,0.20976917,46612.0,46611.0,0.0012741]
[1649127119388,0.20976917,46612.0,46610.0,0.16376677]
[1649127121147,0.20608917,46612.0,46610.0,0.16376677]
[1649127126350,0.20608917,46612.0,46610.0,0.11012777]
[1649127127406,0.20608917,46612.0,46610.0,0.1087032]
[1649127127711,0.20608917,46612.0,46610.0,0.1037032]
[1649127129357,0.20608917,46612.0,46610.0,0.102277]
[1649127129752,0.021488,46611.0,46610.0,0.102277]
[1649127129855,0.021488,46611.0,46608.0,0.053637]
[1649127129856,0.021488,46611.0,46608.0,0.103637]
[1649127129952,0.20608917,46612.0,46608.0,0.103637]
[1649127130050,0.20608917,46612.0,46608.0,0.053637]
[1649127130300,0.322243,46611.0,46608.0,0.053637]
[1649127130803,0.322243,46610.0,46608.0,0.053637]
[1649127130953,0.20608917,46612.0,46608.0,0.053637]
[1649127131051,0.322243,46611.0,46608.0,0.053637]
[1649127131752,0.20608917,46612.0,46608.0,0.053637]
[1649127139672,0.20608917,46612.0,46609.0,0.322243]
[1649127139819,0.20608917,46612.0,46610.0,0.322243]
[1649127139920,0.20608917,46612.0,46610.0,0.35363664]
[1649127140019,0.20608917,46612.0,46611.0,0.622243]
[1649127140320,0.20608917,46612.0,46611.0,0.322243]
[1649127140803,0.20608917,46612.0,46611.0,0.372243]
[1649127140893,0.20608917,46612.0,46611.0,0.672243]
[1649127141202,0.01073,46619.0,46612.0,1.0145608]
[1649127141305,0.00287566,46614.0,46613.0,0.10725757]
[1649127142398,0.00287566,46614.0,46613.0,0.05362857]
[1649127144403,0.00287566,46614.0,46613.0,0.29924926]
[1649127145140,0.00287566,46614.0,46613.0,0.05362857]
[1649127146442,0.21287566,46614.0,46613.0,0.05362857]
[1649127146543,0.21287566,46614.0,46613.0,0.33899682]
[1649127147195,0.21287566,46614.0,46613.0,0.05362857]
[1649127148325,0.21287566,46614.0,46613.0,0.33322823]
[1649127148469,0.21287566,46614.0,46613.0,0.05362857]
[1649127150274,0.21287566,46614.0,46613.0,0.27343164]
[1649127150675,0.21287566,46614.0,46613.0,0.05362857]
[1649127151682,0.21287566,46614.0,46613.0,0.35362857]
[1649127151778,0.21,46614.0,46613.0,0.35362857]
[1649127152050,0.21,46614.0,46613.0,0.6264314]
[1649127154352,0.21,46614.0,46613.0,0.9486744]
[1649127154752,0.21,46614.0,46613.0,0.6264314]
[1649127156293,0.21,46614.0,46613.0,0.9486744]
[1649127157346,0.21,46614.0,46613.0,0.6264314]
[1649127157449,0.21,46614.0,46613.0,0.35362857]
[1649127158200,0.21,46614.0,46613.0,0.67587157]
[1649127158300,0.21,46614.0,46613.0,0.35362857]
[1649127158401,0.21,46614.0,46613.0,0.67587157]
[1649127158601,0.21,46614.0,46613.0,0.98363974]
[1649127158703,0.21,46614.0,46613.0,0.66139674]
[1649127158903,0.21,46614.0,46613.0,0.98363974]
[1649127159003,0.21,46614.0,46613.0,0.66139674]
[1649127159404,0.21,46614.0,46613.0,0.05362857]
[1649127159761,0.21,46614.0,46613.0,0.37587157]
[1649127159864,0.21,46614.0,46613.0,0.05362857]
[1649127159963,0.21,46614.0,46613.0,0.37587157]
[1649127160116,0.21,46614.0,46613.0,0.05362857]
[1649127160413,0.21,46614.0,46613.0,0.6798366]
[1649127160513,0.21,46614.0,46613.0,0.3575936]
[1649127160615,0.21,46614.0,46613.0,0.6798366]
[1649127160713,0.21,46614.0,46613.0,0.3575936]
[1649127160914,0.21,46614.0,46613.0,0.05362857]
[1649127161020,0.21,46614.0,46613.0,0.37587157]
[1649127161215,0.21,46614.0,46613.0,0.05362857]
[1649127162015,0.21,46614.0,46613.0,0.29121852]
[1649127162115,0.21,46614.0,46613.0,0.05362857]
[1649127162315,0.21,46614.0,46613.0,0.37587157]
[1649127162415,0.21,46614.0,46613.0,0.05362857]
[1649127164790,0.21,46614.0,46613.0,0.37587157]
[1649127165391,0.21,46614.0,46613.0,0.05362857]
[1649127165492,0.21,46614.0,46613.0,0.37587157]
[1649127165694,0.21,46614.0,46613.0,0.67587157]
[1649127166194,0.21,46614.0,46613.0,1.80120669]
[1649127167091,0.21,46614.0,46613.0,1.85120669]
[1649127167389,0.21,46614.0,46613.0,2.22344969]
[1649127167689,0.21,46614.0,46613.0,1.90120669]
[1649127167991,0.21,46614.0,46613.0,2.22344969]
[1649127168491,0.21,46614.0,46613.0,1.90120669]
[1649127168697,0.21,46614.0,46613.0,2.22344969]
[1649127168792,0.21,46614.0,46613.0,1.90120669]
[1649127168893,0.21,46614.0,46613.0,1.60120669]
[1649127170297,0.21,46614.0,46613.0,1.92344969]
[1649127170699,0.21,46614.0,46613.0,1.60120669]
[1649127171045,0.21,46614.0,46613.0,1.92344969]
[1649127171144,0.21,46614.0,46613.0,1.60120669]
[1649127171251,0.00053759,46620.0,46617.0,0.2605634]
[1649127171343,0.00053759,46620.0,46617.0,0.36781103]
[1649127171444,0.00053759,46620.0,46618.0,0.053624]
[1649127171846,0.7368751,46622.0,46618.0,0.053624]
[1649127172145,0.0005376,46621.0,46618.0,0.053624]
[1649127173098,0.7368751,46622.0,46618.0,0.053624]
[1649127173350,0.7374127,46622.0,46618.0,0.053624]
[1649127174249,0.7368751,46622.0,46618.0,0.053624]
[1649127174451,0.7374127,46622.0,46618.0,0.053624]
[1649127175493,0.7368751,46622.0,46618.0,0.053624]
[1649127175598,0.322243,46621.0,46618.0,0.053624]
[1649127175698,0.7368751,46622.0,46618.0,0.053624]
[1649127175796,0.73741269,46622.0,46618.0,0.053624]
[1649127175997,0.021488,46621.0,46618.0,0.053624]
[1649127176095,0.73741269,46622.0,46618.0,0.053624]
[1649127176496,0.73741269,46622.0,46619.0,0.29236712]
[1649127176596,0.73741269,46622.0,46618.0,0.053624]
[1649127176697,0.9468751,46622.0,46618.0,0.053624]
[1649127176896,0.94741269,46622.0,46618.0,0.053624]
[1649127177849,0.22671241,46619.0,46618.0,0.053624]
[1649127177952,0.22671241,46619.0,46617.0,0.2605634]
[1649127177953,0.24820041,46619.0,46617.0,0.2605634]
[1649127178051,0.322243,46618.0,46617.0,0.2605634]
[1649127178151,0.64385265,46618.0,46617.0,0.2605634]
[1649127178292,0.74385265,46618.0,46617.0,0.2605634]
[1649127178490,0.88504653,46618.0,46617.0,0.2605634]
[1649127179092,0.60623688,46618.0,46617.0,0.2605634]
[1649127179203,0.9983617,46618.0,46617.0,0.2605634]
[1649127179293,1.13378519,46618.0,46617.0,0.2605634]
[1649127179391,0.99259131,46618.0,46617.0,0.2605634]
[1649127179541,1.13378519,46618.0,46617.0,0.2605634]
[1649127179642,1.41278633,46618.0,46617.0,0.2605634]
[1649127179743,0.88523802,46618.0,46617.0,0.2605634]
[1649127180745,1.02066151,46618.0,46617.0,0.2605634]
[1649127182240,0.88523802,46618.0,46617.0,0.2605634]
[1649127183492,0.89596802,46618.0,46617.0,0.2605634]
[1649127183793,1.03139151,46618.0,46617.0,0.2605634]
[1649127185647,0.89596802,46618.0,46617.0,0.2605634]
[1649127185796,1.03139151,46618.0,46617.0,0.2605634]
[1649127186342,0.89596802,46618.0,46617.0,0.2605634]
[1649127186443,0.90682965,46618.0,46617.0,0.2605634]
[1649127186544,0.95682965,46618.0,46617.0,0.2605634]
[1649127188246,0.90682965,46618.0,46617.0,0.2605634]
[1649127193312,0.89669785,46618.0,46617.0,0.2605634]
[1649127194518,0.89669785,46618.0,46617.0,0.26049863]
[1649127207119,0.94669785,46618.0,46617.0,0.26049863]
[1649127207419,0.66769671,46618.0,46617.0,0.26049863]
[1649127207723,0.52650283,46618.0,46617.0,0.26049863]
[1649127208120,0.47650283,46618.0,46617.0,0.26049863]
[1649127208701,0.76891088,46618.0,46617.0,0.26049863]
[1649127209804,0.47650283,46618.0,46617.0,0.26049863]
[1649127210503,0.46577283,46618.0,46617.0,0.26049863]
[1649127210953,0.47650283,46618.0,46617.0,0.26049863]
[1649127214300,0.89438003,46618.0,46617.0,0.26049863]
[1649127214702,1.03557391,46618.0,46617.0,0.26049863]
[1649127215353,0.89692699,46618.0,46617.0,0.26049863]
[1649127216166,0.61769671,46618.0,46617.0,0.26049863]
[1649127216270,0.75633372,46618.0,46617.0,0.26049863]
[1649127216567,0.75633372,46618.0,46617.0,0.2604103]
[1649127217119,0.80633372,46618.0,46617.0,0.2604103]
[1649127218124,1.08548004,46618.0,46617.0,0.2604103]
[1649127222004,0.80633372,46618.0,46617.0,0.2604103]
[1649127222557,1.08549588,46618.0,46617.0,0.2604103]
[1649127224153,0.75633372,46618.0,46617.0,0.2604103]
[1649127224254,0.74560372,46618.0,46617.0,0.2604103]
[1649127224553,0.60440984,46618.0,46617.0,0.2604103]
[1649127227175,0.60440972,46618.0,46617.0,0.2604103]
[1649127227427,0.46577271,46618.0,46617.0,0.2604103]
[1649127231810,0.46077271,46618.0,46617.0,0.2604103]
[1649127239220,0.45577271,46618.0,46617.0,0.2604103]
[1649127240825,0.45536494,46618.0,46617.0,0.2604103]
[1649127254965,0.45514679,46618.0,46617.0,0.2604103]
[1649127256616,0.45504315,46618.0,46617.0,0.2604103]
[1649127260834,0.45251836,46618.0,46617.0,0.2604103]
[1649127266204,0.45251836,46618.0,46612.0,0.053642]
[1649127266310,0.00032195,46613.0,46612.0,0.103642]
[1649127266407,0.02180995,46613.0,46612.0,0.103642]
[1649127266506,0.02180995,46613.0,46612.0,0.053642]
[1649127272899,0.00032195,46613.0,46612.0,0.053642]
[1649127273000,0.32255795,46613.0,46612.0,0.053642]
[1649127273653,0.00032195,46613.0,46612.0,0.053642]
[1649127273853,0.32255795,46613.0,46612.0,0.053642]
[1649127274655,0.00032195,46613.0,46612.0,0.053642]
[1649127274758,0.00053759,46620.0,46614.0,0.05363467]
[1649127274857,0.00053759,46620.0,46615.0,0.3]
[1649127275004,0.00053759,46620.0,46615.0,0.48829488]
[1649127275254,0.14119388,46621.0,46615.0,0.48829488]
[1649127275457,0.00053761,46620.0,46615.0,0.48829488]
[1649127275827,0.00053761,46620.0,46616.0,0.322236]
[1649127275921,0.00053761,46620.0,46616.0,0.053626]
[1649127276322,0.9468751,46622.0,46616.0,0.053626]
[1649127276422,0.9468751,46622.0,46617.0,0.05362514]
[1649127276624,0.00053761,46620.0,46617.0,0.05362514]
[1649127277623,0.9468751,46622.0,46617.0,0.05362514]
[1649127277828,0.0005376,46621.0,46617.0,0.05362514]
[1649127278176,0.0005376,46621.0,46618.0,0.25095323]
[1649127278377,0.0005376,46621.0,46619.0,0.053627]
[1649127278787,0.9468751,46622.0,46619.0,0.053627]
[1649127278883,0.9468751,46622.0,46619.0,0.107254]
[1649127278981,0.94741269,46622.0,46619.0,0.107254]
[1649127279907,0.9468751,46622.0,46619.0,0.107254]
[1649127285612,0.9468751,46622.0,46619.0,0.10714065]
[1649127287516,0.9468751,46622.0,46619.0,0.40714065]
[1649127294807,0.9468751,46622.0,46619.0,0.10714065]
[1649127295805,0.9468751,46622.0,46619.0,0.35493746]
[1649127296208,0.9468751,46622.0,46619.0,0.65493746]
[1649127296966,0.9468751,46622.0,46619.0,0.85493746]
[1649127297161,0.9468751,46622.0,46619.0,0.65493746]
[1649127297258,0.9468751,46622.0,46619.0,0.85493746]
[1649127297613,0.9468751,46622.0,46620.0,0.322236]
[1649127297710,0.9468751,46622.0,46621.0,0.3]
[1649127297914,0.9468751,46622.0,46621.0,0.35]
[1649127298318,0.9468751,46622.0,46621.0,0.672236]
[1649127299366,0.9468751,46622.0,46621.0,0.35]
[1649127299470,0.9468751,46622.0,46621.0,0.672236]
[1649127300271,0.9468751,46622.0,46619.0,0.60493746]
[1649127300371,0.9468751,46622.0,46620.0,0.322236]
[1649127301119,0.9468751,46622.0,46621.0,0.622236]
[1649127301218,0.9468751,46622.0,46621.0,0.672236]
[1649127301320,0.47625566,46622.0,46621.0,0.672236]
[1649127301425,0.47625566,46622.0,46621.0,0.35]
[1649127302457,0.47625566,46622.0,46621.0,0.672236]
[1649127302657,0.47625566,46622.0,46621.0,0.60310538]
[1649127302758,0.47625566,46622.0,46621.0,0.92534138]
[1649127302858,0.47625566,46622.0,46621.0,0.60310538]
[1649127302960,0.47625566,46622.0,46621.0,0.92534138]
[1649127303212,0.47625566,46622.0,46621.0,0.60310538]
[1649127303311,0.47625566,46622.0,46621.0,0.92534138]
[1649127303511,0.47625566,46622.0,46621.0,0.60310538]
[1649127303611,0.47625566,46622.0,46621.0,0.30310538]
[1649127303814,0.47625566,46622.0,46621.0,0.62534138]
[1649127303914,0.47625566,46622.0,46621.0,0.372236]
[1649127304016,0.47625566,46622.0,46621.0,0.672236]
[1649127304114,0.47625566,46622.0,46621.0,0.35]
[1649127304214,0.47625566,46622.0,46621.0,0.672236]
[1649127304517,0.47625566,46622.0,46621.0,0.97202603]
[1649127304614,0.47625566,46622.0,46621.0,0.64979003]
[1649127304815,0.47625566,46622.0,46621.0,0.35]